fUST/lending_fUST_20240627
["ID","MTS","AMOUNT","RATE_DAILY","PERIOD"]
[330461071,1719438639182,-315.66489488,0.00027999,2]
[330461072,1719438639192,-12168.30524318,0.00028,30]
[330461073,1719438639204,-925.89163409,0.00028,2]
[330461074,1719438639215,-206.94247711,0.00029713,2]
[330461075,1719438639224,-154.83742071,0.00029772,2]
[330461076,1719438639234,-159.99540173,0.00029772,2]
[330461077,1719438639244,-33575.9094095,0.00029774,3]
[330461078,1719438639253,-33575.9094095,0.00029784,3]
[330461079,1719438639263,-1284.76673272,0.00029793,2]
[330461080,1719438639273,-67151.818819,0.00029794,3]
[330461081,1719438639282,-33575.9094095,0.00029804,3]
[330461082,1719438639292,-33575.9094095,0.00029814,3]
[330461083,1719438639302,-151.0,0.00029814,7]
[330461084,1719438639311,-151.0,0.00029814,7]
[330461085,1719438639321,-151.0,0.00029814,7]
[330461086,1719438639330,-1000.0,0.00029814,10]
[330461087,1719438639340,-1000.0,0.00029814,10]
[330461088,1719438639349,-1000.0,0.00029814,10]
[330461089,1719438639357,-1000.0,0.00029814,10]
[330461090,1719438639366,-1000.0,0.00029814,10]
[330461091,1719438639376,-1000.0,0.00029814,10]
[330461092,1719438639385,-1000.0,0.00029814,10]
[330461093,1719438639395,-1000.0,0.00029814,10]
[330461094,1719438639404,-1000.0,0.00029814,10]
[330461095,1719438639414,-1000.0,0.00029814,10]
[330461096,1719438639423,-256.312999,0.00029814,10]
[330461097,1719438639431,-151.0,0.00029814,7]
[330461098,1719438639441,-33575.9094095,0.0002987,3]
[330461099,1719438639450,-34332.86359036,0.0002988,3]
[330461100,1719438639463,-151.0,0.0002988,7]
[330461101,1719438639473,-151.0,0.0002988,7]
[330461102,1719438639487,-151.0,0.0002988,7]
[330461103,1719438639500,-150.0,0.00029904,2]
[330461104,1719438639509,-150.0,0.00029904,2]
[330461105,1719438639519,-200.0,0.00029904,2]
[330461106,1719438639529,-151.94744845,0.00029904,7]
[330461107,1719438639538,-151.94744845,0.00029904,7]
[330461108,1719438639548,-151.94744845,0.00029904,7]
[330461109,1719438639557,-150.0,0.00029904,30]
[330461110,1719438639568,-151.0,0.0002998,7]
[330461111,1719438639578,-151.0,0.0002998,7]
[330461112,1719438639587,-151.0,0.0002998,7]
[330461113,1719438639596,-151.0,0.0002998,7]
[330461114,1719438639605,-151.0,0.0002998,7]
[330461115,1719438639614,-2000.0,0.00029989,30]
[330461116,1719438639623,-1032.38,0.00029989,30]
[330461117,1719438639632,-7580.2189808,0.00029999,2]
[330461118,1719438639641,-22128.72752985,0.0003,2]
[330461119,1719438639650,-1100.67055874,0.0003,4]
[330461120,1719438639660,-470.57395555,0.0003,4]
[330461121,1719438639670,-350.70789883,0.0003,30]
[330461122,1719438639679,-165.85364514,0.0003,4]
[330461123,1719438639688,-1210.91030182,0.0003,3]
[330461124,1719438639699,-19.83957941,0.0003,2]
[330461194,1719438727398,154.94576898,9.999e-05,2]
[330461195,1719438745818,445.86214854,0.0001,2]
[330461196,1719438751849,533.97036201,9.999e-05,2]
[330461197,1719438761754,806.7896675,9.999e-05,2]
[330461200,1719438806729,491.33508365,9.999e-05,2]
[330461203,1719439033750,1226.81656383,0.0001212,2]
[330461206,1719439214235,373.95980367,9.999e-05,2]
[330461207,1719439227241,373.95980367,9.999e-05,2]
[330461211,1719439667239,250.0,0.00013886,2]
[330461212,1719439672211,177.232404,0.00013886,2]
[330461235,1719439832238,-455.8144287,0.00014706,2]
[330461236,1719439832248,-24890.0,0.00014752,2]
[330461237,1719439832258,-1097.42935149,0.00014794,2]
[330461238,1719439832267,-1284.76673272,0.00014794,2]
[330461239,1719439832276,-158.322655,0.00014795,2]
[330461240,1719439832286,-300.0,0.00014867,2]
[330461242,1719439832295,-2825.49865465,0.00015,2]
[330461244,1719439832305,-667.948571,0.00015,2]
[330461246,1719439832314,-394.90145033,0.000169,2]
[330461247,1719439832324,-24380.88423875,0.00018081,2]
[330461273,1719439838320,-5619.11576125,0.00018081,2]
[330461275,1719439838331,-195.98306936,0.0001858,2]
[330461277,1719439838340,-197.0122384,0.00019,2]
[330461281,1719439838350,-525.46798099,0.00019,2]
[330461283,1719439838360,-226.608775,0.00019178,2]
[330461285,1719439838369,-154.83742071,0.0002,2]
[330461287,1719439838379,-1036.02286871,0.0002,2]
[330461289,1719439838389,-292.98056546,0.0002,2]
[330461290,1719439838399,-4170.38363525,0.0002,2]
[330461291,1719439838408,-750.0,0.00021096,2]
[330461292,1719439838418,-166.666666,0.00021918,2]
[330461293,1719439838427,-159.99540173,0.00022,2]
[330461294,1719439838437,-878.62139978,0.0002217,2]
[330461295,1719439838446,-166.666666,0.00022431,2]
[330461296,1719439838456,-166.666666,0.00022944,2]
[330461297,1719439838465,-166.666666,0.00023456,2]
[330461298,1719439838474,-166.666666,0.00023969,2]
[330461299,1719439838483,-231.738,0.00024054,2]
[330461300,1719439838493,-166.666666,0.00024482,2]
[330461301,1719439838503,-188.90000032,0.00025,2]
[330461302,1719439838513,-158.322655,0.00025903,2]
[330461303,1719439838522,-226.608775,0.00026388,2]
[330461304,1719439838531,-750.0,0.00027195,2]
[330461305,1719439838540,-335.78820569,0.000274,2]
[330461306,1719439838549,-909.25491549,0.000275,30]
[330461307,1719439838559,-514.38424116,0.00028,2]
[330461308,1719439838568,-12168.30524318,0.00028,30]
[330461309,1719439838577,-198.67116313,0.00028,2]
[330461310,1719439838587,-622.35951047,0.00029699,4]
[330461311,1719439838596,-150.0,0.00029918,2]
[330461312,1719439838606,-150.0,0.00029918,2]
[330461313,1719439838615,-200.0,0.00029918,2]
[330461314,1719439838625,-151.94744845,0.00029918,7]
[330461315,1719439838634,-151.94744845,0.00029918,7]
[330461316,1719439838644,-151.94744845,0.00029918,7]
[330461317,1719439838653,-470.57395555,0.0003,4]
[330461318,1719439838663,-350.70789883,0.0003,30]
[330461319,1719439838673,-154.83742071,0.0003,4]
[330461320,1719439838683,-176.0,0.0003,2]
[330461321,1719439838692,-151.94744845,0.00030932,7]
[330461322,1719439838702,-151.94744845,0.00032932,7]
[330461323,1719439838712,-156.31960927,0.00032951,4]
[330461324,1719439838721,-302.83377132,0.00032951,4]
[330461325,1719439838731,-308.9354042,0.0003326,2]
[330461326,1719439838740,-150.83408251,0.00033269,2]
[330461327,1719439838749,-750.0,0.00033295,2]
[330461328,1719439838759,-226.608775,0.00033598,2]
[330461329,1719439838900,-301.66816502,0.00033828,4]
[330461330,1719439838910,-1000.0,0.00034127,2]
[330461331,1719439838923,-1000.0,0.00034182,2]
[330461332,1719439838935,-176.0,0.00034196,2]
[330461333,1719439838944,-1000.0,0.00034196,2]
[330461334,1719439838955,-1000.0,0.0003423,2]
[330461335,1719439838966,-21824.3411162,0.00034237,4]
[330461336,1719439838977,-1917.4435648,0.00034247,4]
[330461337,1719439838991,-6986.23838379,0.00034247,4]
[330461338,1719439839003,-1025.39492162,0.00034247,4]
[330461339,1719439839016,-1847.64465184,0.00034247,4]
[330461340,1719439839029,-4045.08135224,0.00034247,4]
[330461346,1719439840228,-5249.71966006,0.00034247,4]
[330461347,1719439840240,-752.81858185,0.00034247,4]
[330461348,1719439840251,-21824.3411162,0.00034257,4]
[330461349,1719439840260,-1408.10797008,0.00034267,4]
[330461350,1719439840272,-42240.57426222,0.00034267,4]
[330461351,1719439840282,-1000.0,0.00034287,2]
[330461352,1719439840291,-1000.0,0.00034287,2]
[330461353,1719439840301,-1000.0,0.00034288,2]
[330461354,1719439840311,-1000.0,0.00034292,2]
[330461355,1719439840320,-1000.0,0.00034303,2]
[330461356,1719439840329,-1000.0,0.00034305,2]
[330461357,1719439840338,-1000.0,0.00034305,2]
[330461358,1719439840348,-1000.0,0.00034318,2]
[330461359,1719439840357,-1000.0,0.00034319,2]
[330461360,1719439840366,-338.22440558,0.00034324,2]
[330461361,1719439840376,-1000.0,0.00034333,2]
[330461362,1719439840385,-1000.0,0.00034339,2]
[330461363,1719439840394,-1000.0,0.00034342,2]
[330461365,1719439840403,-1000.0,0.00034355,2]
[330461367,1719439840412,-151.0,0.00034355,7]
[330461369,1719439840422,-151.0,0.00034355,7]
[330461371,1719439840431,-151.0,0.00034355,7]
[330461372,1719439840440,-1000.0,0.00034363,2]
[330461373,1719439840449,-1000.0,0.0003437,2]
[330461374,1719439840458,-1000.0,0.0003439,2]
[330461376,1719439840468,-1000.0,0.00034391,2]
[330461379,1719439840477,-603.33633004,0.00034397,7]
[330461382,1719439840486,-1000.0,0.00034419,2]
[330461384,1719439840495,-1000.0,0.00034442,2]
[330461386,1719439840504,-151.0,0.00034462,7]
[330461388,1719439840513,-222.200178,0.00034462,7]
[330461390,1719439840522,-300.0,0.0003449,2]
[330461392,1719439840532,-300.0,0.00034531,2]
[330461394,1719439840541,-233.595858,0.0003455,7]
[330461396,1719439840550,-151.0,0.0003455,7]
[330461397,1719439840559,-191.40297,0.0003455,7]
[330461398,1719439840568,-151.0,0.0003455,7]
[330461399,1719439840577,-3790.1094904,0.00034551,2]
[330461400,1719439840587,-7094.30417812,0.00034552,4]
[330461417,1719439843295,-215.0,0.00034237,2]
[330461418,1719439843304,-2386.07474856,0.00034552,4]
[330461434,1719439992264,1000.0,0.00029756,120]
[330461493,1719441038603,-158.251335,0.00014795,2]
[330461494,1719441038613,-4261.72788041,0.00014998,2]
[330461510,1719441040736,-6491.32899729,0.00014998,2]
[330461512,1719441040746,-667.948571,0.00015,2]
[330461514,1719441040756,-525.46798099,0.00019,2]
[330461516,1719441040766,-292.98056546,0.0002,2]
[330461518,1719441040776,-1036.02286871,0.0002,2]
[330461520,1719441040786,-3.65101655,0.0002,2]
[330461565,1719441046710,-195.04266428,0.0002,2]
[330461566,1719441046720,-750.0,0.00021096,2]
[330461567,1719441046730,-159.99540173,0.00022,2]
[330461568,1719441046739,-4429.9792154,0.00025463,2]
[330461569,1719441046749,-166.666666,0.00025889,2]
[330461570,1719441046759,-158.251335,0.00025903,2]
[330461571,1719441046768,-166.666666,0.00026595,2]
[330461572,1719441046777,-151.05264999,0.00027154,2]
[330461573,1719441046787,-750.0,0.00027195,2]
[330461574,1719441046796,-166.666666,0.00027301,2]
[330461575,1719441046805,-335.78820569,0.000274,2]
[330461576,1719441046815,-514.38424116,0.00028,2]
[330461577,1719441046824,-8642.05746755,0.00028,30]
[330461578,1719441046834,-166.666666,0.00028007,2]
[330461579,1719441046843,-166.666666,0.00028712,2]
[330461580,1719441046852,-166.666666,0.00029418,2]
[330461581,1719441046861,-225.3948498,0.00029756,2]
[330461582,1719441046871,-4170.38363525,0.00029756,2]
[330461583,1719441046879,-188.90000032,0.00029756,2]
[330461584,1719441046889,-150.0,0.00029918,2]
[330461585,1719441046898,-150.0,0.00029918,2]
[330461586,1719441046907,-200.0,0.00029918,2]
[330461587,1719441046916,-262.0,0.0003,2]
[330461588,1719441046925,-151.94744845,0.00031206,7]
[330461589,1719441046935,-917.22546562,0.00032229,4]
[330461590,1719441046946,-262.0,0.00033,2]
[330461591,1719441046956,-151.94744845,0.00033206,8]
[330461592,1719441046965,-750.0,0.00033295,2]
[330461593,1719441046976,-311.17975524,0.00034205,4]
[330461594,1719441046991,-300.0,0.00034365,2]
[330461595,1719441047000,-579.9011429,0.00034379,7]
[330461596,1719441047010,-300.0,0.00034397,2]
[330461597,1719441047019,-154.83742071,0.00034458,2]
[330461598,1719441047029,-154.83742071,0.00034458,2]
[330461599,1719441047040,-5000.0,0.000345,3]
[330461600,1719441047049,-454.18943319,0.00034521,7]
[330461601,1719441047059,-262.0,0.00034522,2]
[330461602,1719441047068,-5523.4605977,0.00034522,4]
[330461604,1719441280685,916.22837838,9.999e-05,2]
[330461605,1719441301205,159.35965211,9.999e-05,2]
[330461608,1719441525596,1284.76673272,0.0001212,2]
[330461609,1719441641087,925.95024145,9.999e-05,2]
[330461610,1719441687253,154.99800052,0.0001212,2]
[330461614,1719442204354,-158.191902,0.00014795,2]
[330461615,1719442204385,-508.14643717,0.00015,2]
[330461616,1719442204608,-159.80213383,0.00015,2]
[330461617,1719442204786,-506.53620534,0.00015,2]
[330461618,1719442204825,-233.97171587,0.00015,2]
[330461642,1719442232993,-2084.99073344,0.00015,2]
[330461643,1719442233003,-525.46798099,0.00019,2]
[330461644,1719442233012,-292.98056546,0.0002,2]
[330461646,1719442233023,-225.3948498,0.0002,2]
[330461648,1719442233032,-1036.02286871,0.0002,2]
[330461651,1719442233044,-750.0,0.00021096,2]
[330461654,1719442233053,-166.666666,0.00021918,2]
[330461657,1719442233063,-20049.8191898,0.00022031,2]
[330461659,1719442233072,-166.666666,0.00022431,2]
[330461661,1719442233082,-153.0,0.00022841,2]
[330461663,1719442233091,-153.0,0.00022841,2]
[330461665,1719442233102,-166.666666,0.00022944,2]
[330461667,1719442233111,-166.666666,0.00023456,2]
[330461669,1719442233120,-150.0,0.00023518,2]
[330461671,1719442233130,-166.666666,0.00023969,2]
[330461673,1719442233140,-250.0,0.00024066,2]
[330461675,1719442233149,-166.666666,0.00024482,2]
[330461677,1719442233159,-350.0,0.00024614,2]
[330461679,1719442233168,-188.90000032,0.00025,2]
[330461681,1719442233177,-450.0,0.00025162,2]
[330461683,1719442233187,-5345.58769382,0.00025336,2]
[330461694,1719442233283,-16260.74585222,0.00025336,2]
[330461696,1719442233294,-550.0,0.0002571,2]
[330461698,1719442233303,-158.191902,0.00025903,2]
[330461700,1719442233313,-650.0,0.00026258,2]
[330461702,1719442233322,-192.617458,0.00026506,2]
[330461704,1719442233331,-751.0,0.00026806,2]
[330461706,1719442233340,-750.0,0.00027195,2]
[330461708,1719442233350,-174.94565516,0.000274,2]
[330461710,1719442233359,-2142.316158,0.00027999,2]
[330461712,1719442233370,-9940.70350962,0.00027999,2]
[330461752,1719442238795,-1895.0547452,0.00027999,2]
[330461753,1719442238805,-1433.13710119,0.00027999,2]
[330461754,1719442238815,-1000.0,0.000293,2]
[330461755,1719442238824,-1000.0,0.000298,2]
[330461756,1719442238834,-9176.3945006,0.00029925,30]
[330461757,1719442238843,-150.0,0.00029925,2]
[330461758,1719442238852,-150.0,0.00029925,2]
[330461759,1719442238861,-200.0,0.00029925,2]
[330461760,1719442238871,-642.05782593,0.0003,4]
[330461761,1719442238880,-292.0,0.0003,2]
[330461762,1719442238890,-292.0,0.00033,2]
[330461763,1719442238900,-750.0,0.00033295,2]
[330461764,1719442238909,-151.94744845,0.00033427,9]
[330461765,1719442238918,-192.617458,0.0003373,2]
[330461766,1719442238928,-40282.24,0.00034198,3]
[330461767,1719442238937,-155.58987762,0.00034205,4]
[330461768,1719442238947,-29708.92698593,0.00034208,3]
[330461770,1719442240861,-24075.20136166,0.00034268,4]
[330461772,1719442240873,-11422.4070293,0.00034268,4]
[330461774,1719442240886,-346.5,0.00034268,4]
[330461843,1719442247096,-282.5,0.00015,2]
[330461846,1719442247320,-4365.01011654,0.00015,2]
[330461847,1719442247332,-261.81,0.00015,2]
[330461848,1719442396620,1144.0,0.000297,120]
[330461849,1719442490449,491.33508365,9.999e-05,2]
[330461850,1719442805726,540.11838627,0.0001212,30]
[330461851,1719442812576,525.65295456,0.0001212,2]
[330461852,1719442850722,360.07892418,0.0001212,30]
[330461853,1719442895717,300.06577015,0.00014691,30]
[330461854,1719442977718,156.33426625,0.00017807,30]
[330461855,1719443014486,888.0,0.00029756,120]
[330461856,1719443019192,1305.66024038,0.000225,30]
[330461857,1719443172472,133.82551,0.00029756,120]
[330461858,1719443172493,755.17449,0.00029756,120]
[330461893,1719443432421,-158.142374,0.00014795,2]
[330461895,1719443432431,-4920.857626,0.00015,2]
[330461916,1719443440351,-1018.56670202,0.00015,2]
[330461956,1719443443324,-498.67064133,0.00015,2]
[330461957,1719443443335,-848.98499647,0.00015,2]
[330461958,1719443443346,-4625.76898072,0.00015,2]
[330461959,1719443443360,-392.1959995,0.00015,2]
[330461993,1719443446468,-1721.2999999,0.00015,2]
[330461994,1719443446480,-918.64713147,0.00015,2]
[330461995,1719443446491,-729.45195571,0.00015,2]
[330461996,1719443446503,-1612.6359327,0.00015,2]
[330461997,1719443446512,-667.948571,0.00015,2]
[330461998,1719443446522,-276.08930439,0.00016801,2]
[330461999,1719443446531,-826.10060043,0.00018182,2]
[330462000,1719443446541,-154.94576898,0.00018182,2]
[330462001,1719443446551,-154.96125969,0.00018182,2]
[330462002,1719443446561,-242.84775224,0.00018182,2]
[330462003,1719443446572,-30000.0,0.00018798,2]
[330462004,1719443446581,-154.55583014,0.000189,2]
[330462005,1719443446590,-811.14465118,0.00019,3]
[330462006,1719443446600,-5926.19523831,0.00019,2]
[330462007,1719443446609,-525.46798099,0.00019,2]
[330462008,1719443446618,-207.31154796,0.00019,2]
[330462009,1719443446627,-173.355712,0.00019178,2]
[330462010,1719443446637,-1036.02286871,0.0002,2]
[330462011,1719443446646,-292.98056546,0.0002,2]
[330462012,1719443446655,-225.3948498,0.0002,2]
[330462013,1719443446664,-750.0,0.00021096,2]
[330462014,1719443446673,-166.666666,0.00021918,2]
[330462015,1719443446684,-166.666666,0.00022431,2]
[330462016,1719443446693,-154.55583012,0.000227,2]
[330462017,1719443446702,-620.00038706,0.00022743,2]
[330462018,1719443446712,-166.666666,0.00022944,2]
[330462019,1719443446721,-241.81182628,0.00023,2]
[330462020,1719443446730,-166.666666,0.00023456,2]
[330462021,1719443446740,-620.00001935,0.0002388,2]
[330462022,1719443446749,-166.666666,0.00023969,2]
[330462023,1719443446759,-166.666666,0.00024482,2]
[330462024,1719443446770,-188.90000032,0.00025,2]
[330462025,1719443446779,-620.00000097,0.00025074,2]
[330462026,1719443446788,-158.142374,0.00025903,2]
[330462027,1719443446799,-620.00000005,0.00026328,2]
[330462028,1719443446809,-173.355712,0.00026388,2]
[330462029,1719443446820,-3000.0,0.000265,2]
[330462030,1719443446830,-154.55583012,0.000265,2]
[330462031,1719443446839,-3000.0,0.0002651,2]
[330462032,1719443446848,-3000.0,0.0002652,2]
[330462033,1719443446857,-30401.16,0.0002652,3]
[330462034,1719443446866,-150.0,0.00026526,2]
[330462035,1719443446876,-3000.0,0.0002653,2]
[330462036,1719443446886,-3000.0,0.0002654,2]
[330462037,1719443446895,-947.5273726,0.0002655,2]
[330462038,1719443446905,-3000.0,0.0002655,2]
[330462039,1719443446914,-3000.0,0.0002656,2]
[330462040,1719443446924,-142806.478318,0.0002656,3]
[330462041,1719443446933,-3000.0,0.0002657,2]
[330462042,1719443446942,-142806.478318,0.0002657,3]
[330462043,1719443446951,-151.0,0.0002657,7]
[330462044,1719443446960,-3000.0,0.0002658,2]
[330462045,1719443446970,-11064.36376492,0.0002658,2]
[330462046,1719443446979,-151.0,0.0002658,7]
[330462047,1719443446988,-142806.478318,0.0002658,3]
[330462048,1719443446997,-3000.0,0.0002659,2]
[330462049,1719443447006,-142806.478318,0.0002659,3]
[330462050,1719443447015,-151.0,0.0002659,7]
[330462051,1719443447026,-151.0,0.0002659,7]
[330462052,1719443447156,-151.0,0.0002659,7]
[330462053,1719443447166,-787.29,0.000266,31]
[330462054,1719443447176,-787.29,0.000266,31]
[330462055,1719443447185,-787.29,0.000266,31]
[330462056,1719443447194,-787.29,0.000266,31]
[330462057,1719443447204,-787.29,0.000266,31]
[330462058,1719443447214,-787.29,0.000266,31]
[330462059,1719443447224,-787.29,0.000266,31]
[330462060,1719443447233,-787.29,0.000266,31]
[330462061,1719443447242,-787.29,0.000266,31]
[330462062,1719443447251,-787.29,0.000266,31]
[330462063,1719443447260,-787.29,0.000266,31]
[330462064,1719443447270,-787.29,0.000266,31]
[330462065,1719443447279,-787.29,0.000266,31]
[330462066,1719443447288,-787.29,0.000266,31]
[330462067,1719443447298,-787.29,0.000266,31]
[330462068,1719443447307,-787.29,0.000266,31]
[330462069,1719443447317,-787.29,0.000266,31]
[330462070,1719443447326,-787.29,0.000266,31]
[330462071,1719443447336,-787.29,0.000266,31]
[330462072,1719443447345,-787.29,0.000266,31]
[330462073,1719443447355,-3000.0,0.000266,2]
[330462074,1719443447364,-3000.0,0.0002661,2]
[330462075,1719443447374,-3000.0,0.0002662,2]
[330462076,1719443447383,-151.0,0.0002662,7]
[330462077,1719443447392,-151.0,0.0002662,7]
[330462078,1719443447401,-3000.0,0.0002663,2]
[330462079,1719443447411,-3000.0,0.0002664,2]
[330462080,1719443447420,-164.829,0.00026644,2]
[330462081,1719443447429,-876.0,0.00026644,2]
[330462082,1719443447438,-3000.0,0.0002665,2]
[330462083,1719443447447,-3000.0,0.0002666,2]
[330462084,1719443447456,-3000.0,0.0002667,2]
[330462085,1719443447465,-3000.0,0.0002668,2]
[330462086,1719443447474,-3000.0,0.0002669,2]
[330462087,1719443447483,-3000.0,0.000267,2]
[330462088,1719443447492,-151.0,0.000267,7]
[330462089,1719443447501,-151.0,0.000267,7]
[330462090,1719443447510,-151.0,0.000267,7]
[330462091,1719443447519,-231.98507,0.000267,7]
[330462092,1719443447528,-231.98507,0.000267,7]
[330462093,1719443447538,-151.0,0.000267,7]
[330462094,1719443447547,-1000.0,0.000267,5]
[330462095,1719443447556,-1000.0,0.000267,5]
[330462096,1719443447567,-1000.0,0.000267,5]
[330462097,1719443447577,-1000.0,0.000267,5]
[330462098,1719443447586,-1000.0,0.000267,5]
[330462099,1719443447596,-1000.0,0.000267,5]
[330462100,1719443447605,-1000.0,0.000267,5]
[330462101,1719443447614,-1000.0,0.000267,5]
[330462102,1719443447625,-1000.0,0.000267,5]
[330462103,1719443447635,-1000.0,0.000267,5]
[330462104,1719443447645,-1000.0,0.000267,5]
[330462105,1719443447654,-1000.0,0.000267,5]
[330462106,1719443447664,-1000.0,0.000267,5]
[330462107,1719443447674,-1000.0,0.000267,5]
[330462108,1719443447683,-1000.0,0.000267,5]
[330462109,1719443447693,-1000.0,0.000267,5]
[330462110,1719443447702,-1000.0,0.000267,5]
[330462111,1719443447712,-1000.0,0.000267,5]
[330462112,1719443447722,-1000.0,0.000267,5]
[330462113,1719443447731,-1000.0,0.000267,5]
[330462114,1719443447740,-1000.0,0.000267,5]
[330462115,1719443447751,-1000.0,0.000267,5]
[330462116,1719443447760,-1000.0,0.000267,5]
[330462117,1719443447769,-1000.0,0.000267,5]
[330462118,1719443447779,-1000.0,0.000267,5]
[330462119,1719443447788,-1000.0,0.000267,5]
[330462120,1719443447797,-1000.0,0.000267,5]
[330462121,1719443447807,-1000.0,0.000267,5]
[330462122,1719443447816,-1000.0,0.000267,5]
[330462123,1719443447826,-1000.0,0.000267,5]
[330462124,1719443447835,-1000.0,0.000267,5]
[330462125,1719443447844,-1000.0,0.000267,5]
[330462126,1719443447854,-1000.0,0.000267,5]
[330462127,1719443447863,-1000.0,0.000267,5]
[330462128,1719443447872,-1000.0,0.000267,5]
[330462129,1719443447882,-1000.0,0.000267,5]
[330462130,1719443447891,-1000.0,0.000267,5]
[330462131,1719443447900,-1000.0,0.000267,5]
[330462132,1719443447910,-1000.0,0.000267,5]
[330462133,1719443447919,-1000.0,0.000267,5]
[330462134,1719443447928,-1000.0,0.000267,5]
[330462135,1719443447938,-1000.0,0.000267,5]
[330462136,1719443447947,-1000.0,0.000267,5]
[330462137,1719443447956,-1000.0,0.000267,5]
[330462138,1719443447965,-1000.0,0.000267,5]
[330462139,1719443447975,-1000.0,0.000267,5]
[330462140,1719443447985,-1000.0,0.000267,5]
[330462141,1719443447994,-1000.0,0.000267,5]
[330462142,1719443448003,-1000.0,0.000267,5]
[330462143,1719443448012,-1000.0,0.000267,5]
[330462144,1719443448022,-1000.0,0.000267,5]
[330462145,1719443448032,-1000.0,0.000267,5]
[330462146,1719443448041,-1000.0,0.000267,5]
[330462147,1719443448053,-1000.0,0.000267,5]
[330462148,1719443448062,-1000.0,0.000267,5]
[330462149,1719443448071,-1000.0,0.000267,5]
[330462150,1719443448080,-1000.0,0.000267,5]
[330462151,1719443448090,-1000.0,0.000267,5]
[330462152,1719443448099,-1000.0,0.000267,5]
[330462153,1719443448108,-1000.0,0.000267,5]
[330462154,1719443448117,-1000.0,0.000267,5]
[330462155,1719443448127,-1000.0,0.000267,5]
[330462156,1719443448141,-1000.0,0.000267,5]
[330462157,1719443448151,-620.005935,0.000267,5]
[330462158,1719443448160,-151.0,0.000267,7]
[330462159,1719443448170,-3000.0,0.0002671,2]
[330462160,1719443448179,-3000.0,0.0002672,2]
[330462161,1719443448188,-151.0,0.0002672,7]
[330462162,1719443448198,-151.0,0.0002672,7]
[330462163,1719443448208,-151.0,0.0002672,7]
[330462164,1719443448217,-151.0,0.0002672,7]
[330462165,1719443448227,-151.0,0.0002672,7]
[330462166,1719443448237,-151.0,0.0002672,7]
[330462167,1719443448246,-151.0,0.0002672,7]
[330462168,1719443448255,-151.0,0.0002672,7]
[330462169,1719443448265,-3000.0,0.0002673,2]
[330462170,1719443448277,-3000.0,0.0002674,2]
[330462171,1719443448287,-3000.0,0.0002675,2]
[330462172,1719443448296,-4202.870984,0.0002676,2]
[330462173,1719443448306,-250.0,0.00027074,2]
[330462174,1719443448316,-750.0,0.00027195,2]
[330462175,1719443448326,-174.94565516,0.000274,2]
[330462176,1719443448335,-150.84915085,0.00027573,2]
[330462177,1719443448344,-350.0,0.00027622,2]
[330462178,1719443448354,-1979.248654,0.000278,2]
[330462179,1719443448364,-151.0,0.000278,7]
[330462180,1719443448374,-301.6983017,0.00028036,4]
[330462181,1719443448383,-161.43343889,0.0002817,2]
[330462182,1719443448393,-151.0,0.000283,7]
[330462183,1719443448402,-151.0,0.000283,7]
[330462184,1719443448412,-151.0,0.000283,7]
[330462185,1719443448421,-231.98507,0.000283,7]
[330462186,1719443448431,-231.98507,0.000283,7]
[330462187,1719443448441,-151.0,0.000283,7]
[330462188,1719443448451,-1000.0,0.000283,2]
[330462189,1719443448460,-153.834644,0.0002849,7]